Cogmind - Beta 11 @@@ ROGUE MODE // 2022.04.16 @ 21:38:07 Player: RNGesus Result: Self-destructed Performance ------------- Evolutions (4) 2000 Regions Visited (15) 3000 Robots Destroyed (197) 985 Value Destroyed (6034) 6034 Prototype IDs (16) 320 Alien Tech Used (0) 0 Bonus (653) 653 TOTAL SCORE: 12992 Bonus ------- High Alert Combat Kills 355 Follower Combat Kills 298 Cogmind --------- Core Integrity 703/850 Matter 109/300 Energy 14/100 System Corruption 7% Temperature Cool (2) Movement Flying (37) Location -6/Factory Parts ------- > --- POWER (1) -------- (None) > --- PROPULSION (5) --- Improved Flight Unit Biomechanical Wings > --- UTILITY (7) ------ Medium Storage Unit Enhanced Optical Array Advanced Sensor Array Advanced Signal Interpreter Hacking Suite Hacking Suite System Shield > --- WEAPON (2) ------- (None) > --- INVENTORY (10) --- Light Neutrino Core Light Neutrino Core Experimental Sensor Array Advanced Terrain Scanner Nanoactuators Graphene Brace System Shield Cooled Proton Cannon Mini Smartbomb Launcher Phasing Sabre Peak State ------------ > --- POWER ------------ Light Neutrino Core > --- PROPULSION ------- Improved Flight Unit Improved Flight Unit Improved Flight Unit Biomechanical Wings Biomechanical Wings > --- UTILITY ---------- Medium Storage Unit Enhanced Optical Array Experimental Sensor Array Advanced Signal Interpreter Hacking Suite Hacking Suite System Shield > --- WEAPON ----------- Impact Mace Phasing Sabre > --- INVENTORY -------- Light Neutrino Core Advanced Sensor Array Advanced Terrain Scanner Nanoactuators Graphene Brace System Shield Cooled Proton Cannon Mini Smartbomb Launcher Mini Smartbomb Launcher [Rating: 73] Favorites ----------- Power Improved Ion Engine Engine Improved Ion Engine Power Core Light Neutrino Core Propulsion Advanced Treads Treads Advanced Treads Leg Carbon-fiber Leg Wheel Wheel Flight Unit Improved Flight Unit Utility High-capacity Storage Unit Device Experimental Sensor Array Storage High-capacity Storage Unit Processor Improved Targeting Computer Hackware Hacking Suite Protection Light Armor Plating Weapon High-powered Shotgun Energy Gun Heavy Particle Gun Energy Cannon Heavy Ion Cannon Ballistic Gun High-powered Shotgun Ballistic Cannon Tri-rail Accelerator Launcher Rocket Launcher Impact Weapon Impact Mace Slashing Weapon Phasing Sabre Piercing Weapon Makeshift Spear Build | -11 -10 -10 -9 -9 -9 -8 -8 -7 -7 -7 -7 -6 -6 -6 -6 ------- Run | Scr Mat Min Mat Min Exi Min Mat Fac Low Low Zio Pro Fac Was Fac Slots Evolved 8 | . . . 2 . . . 2 2 . . . . 2 . . Power . | . . . . . . . . . . . . . . . . Propulsion 3 | . . . 1 . . . 1 . . . . . 1 . . Utility 5 | . . . 1 . . . 1 2 . . . . 1 . . Weapon . | . . . . . . . . . . . . . . . . Parts Attached 192 | 6 3 12 16 . . 5 55 44 3 2 3 7 9 . 27 Power 15 | 1 . 1 1 . . 1 7 3 . 1 . . . . . Engine 6 | 1 . 1 1 . . 1 1 1 . . . . . . . Core 9 | . . . . . . . 6 2 . 1 . . . . . Reactor . | . . . . . . . . . . . . . . . . Propulsion 45 | 2 . 4 6 . . 1 17 11 . . . . 3 . 1 Treads 27 | 2 . 4 5 . . 1 11 4 . . . . . . . Leg 5 | . . . . . . . 4 1 . . . . . . . Wheel 2 | . . . . . . . 1 1 . . . . . . . Hover . | . . . . . . . . . . . . . . . . Flight 11 | . . . 1 . . . 1 5 . . . . 3 . 1 Utility 45 | 1 1 2 3 . . 1 8 13 2 . . 2 4 . 8 Device 18 | . . . 1 . . . 2 4 2 . . 1 . . 8 Storage 4 | 1 1 . . . . . 1 1 . . . . . . . Processor 10 | . . 1 . . . . 2 4 . . . . 3 . . Hackware 4 | . . . . . . . . 2 . . . 1 1 . . Protection 9 | . . 1 2 . . 1 3 2 . . . . . . . Artifact . | . . . . . . . . . . . . . . . . Weapon 87 | 2 2 5 6 . . 2 23 17 1 1 3 5 2 . 18 Energy Gun 2 | . . . . . . . 1 1 . . . . . . . Energy Cannon 8 | . . . . . . . . 3 1 . . . . . 4 Ballistic Gun 34 | 2 1 4 4 . . 1 15 7 . . . . . . . Ballistic Cannon 2 | . . . . . . . . 2 . . . . . . . Launcher 23 | . 1 1 2 . . 1 7 4 . 1 . 5 1 . . Special Weapon . | . . . . . . . . . . . . . . . . Impact Weapon 1 | . . . . . . . . . . . . . . . 1 Slashing Weapon 16 | . . . . . . . . . . . 2 . 1 . 13 Piercing Weapon 1 | . . . . . . . . . . . 1 . . . . Special Melee Weapon . | . . . . . . . . . . . . . . . . Unidentified Prototypes 15 | . . . 2 . . . 3 9 . . . . . . 1 Parts Lost 42 | . . 6 1 . . 1 19 11 . . . 1 . . 3 Power 6 | . . 1 . . . 1 3 1 . . . . . . . Propulsion 17 | . . 2 . . . . 6 6 . . . . . . 3 Utility 9 | . . 1 1 . . . 4 2 . . . 1 . . . Weapon 10 | . . 2 . . . . 6 2 . . . . . . . Highest Loss Streak 7 | . . 3 1 . . 1 7 7 . . . 1 . . 1 To Critical Strikes . | . . . . . . . . . . . . . . . . Average Slot Usage (%) 94 | . 87 99 99 100 100 99 95 96 84 84 89 92 85 86 90 Engine 6 | . 14 14 11 11 11 10 . 4 . . . . . . . Core 3 | . . . . . . . 7 2 7 6 7 7 6 6 5 Treads 23 | . 28 27 33 33 33 33 29 25 . . . . . . . Flight 6 | . . . . . . . . 1 30 30 30 30 25 26 31 Device 2 | . . . . . . . 1 4 6 7 7 7 6 6 5 Storage 10 | . 16 14 11 11 11 11 9 6 7 7 7 7 6 6 6 Processor 14 | . . 9 11 11 11 11 17 30 15 15 15 15 14 13 13 Hackware 3 | . . . . . . . . . 15 15 15 14 17 20 20 Protection 4 | . . 3 10 11 11 11 6 1 . . . . . . . Ballistic Gun 16 | . 27 27 21 22 22 21 16 11 . . . . . . . Naked Turns . | . . . . . . . . . . . . . . . . Heaviest Build 117 | 12 52 50 59 56 56 57 101 117 19 19 21 21 21 21 25 Greatest Support 112 | 40 40 40 66 66 66 66 112 112 21 21 21 21 21 21 27 Greatest Overweight (x) 16 | 2 1 1 . . . . 16 11 . . . . . . 1 Average Overweight (x) . | . . 1 . . . . . 2 . . . . . . . Largest Inventory Capacity 25 | 8 20 20 20 20 20 20 25 25 10 10 10 10 10 10 10 Average Capacity 18 | 7 19 20 20 20 20 20 21 24 10 10 10 10 10 10 10 Most Carried 25 | 2 20 20 20 20 20 20 25 25 10 10 10 10 10 10 10 Average Carried 17 | 1 14 17 19 20 19 19 20 23 8 8 9 9 9 10 9 Final Capacity 25 | 8 20 20 20 20 20 20 25 10 10 10 10 10 10 10 10 Final Carried 25 | 2 20 18 20 20 20 19 25 9 8 10 10 9 10 10 10 Class Distribution -------------------- 72% | Mutant 19% | Hacker-Scout 6% | Scavenger-Mutant Dominant Class ---------------- Mutant | -10/Materials Mutant | -10/Mines Mutant | -9/Materials Mutant | -9/Mines Mutant | -9/Exiles Mutant | -8/Mines Mutant | -8/Materials Mutant | -7/Factory Hacker-Sprinter | -7/Lower Caves Hacker-Scout | -7/Lower Caves Hacker-Scout | -7/Zion Hacker-Scout | -6/Proximity Caves Hacker-Scout | -6/Factory Hacker-Scout | -6/Waste Hacker-Scout | -6/Factory Resources | -11 -10 -10 -9 -9 -9 -8 -8 -7 -7 -7 -7 -6 -6 -6 -6 ----------- Run | Scr Mat Min Mat Min Exi Min Mat Fac Low Low Zio Pro Fac Was Fac Matter Collected 5314 | 231 261 561 423 144 . 133 1806 1010 60 . 109 278 165 23 110 Remotely . | . . . . . . . . . . . . . . . . Salvage Created 6855 | . 335 407 765 190 . 246 2760 1248 . . . 297 244 . 363 Parts 394 | . 27 14 51 8 . 20 155 68 . 1 . 13 17 . 20 Haulers Intercepted 15 | . 2 . 1 . . . 6 3 . . . . 1 . 2 Recyclers Shooed 6 | . . . . . . . 6 . . . . . . . . Parts Field Recycled . | . . . . . . . . . . . . . . . . Retrieved Matter . | . . . . . . . . . . . . . . . . Parts Self-Destructed 9 | . . . . . . . . . . . . 9 . . . Prevented . | . . . . . . . . . . . . . . . . Kills | -11 -10 -10 -9 -9 -9 -8 -8 -7 -7 -7 -7 -6 -6 -6 -6 ------- Run | Scr Mat Min Mat Min Exi Min Mat Fac Low Low Zio Pro Fac Was Fac Combat Hostiles Destroyed 163 | . 11 12 22 2 . 15 51 29 . 1 . 13 5 . 2 Melee 4 | . . . . . . . . . . . . 1 1 . 2 Guns 98 | . 8 10 14 2 . 8 38 18 . . . . . . . AOE 61 | . 3 2 8 . . 7 13 11 . 1 . 12 4 . . Classes Destroyed 19 | . 4 3 3 1 . 1 4 2 . 1 . . . . . Worker 10 | . . 2 2 1 . . 4 . . . . . 1 . . Builder 4 | . . . 1 . . . . 2 . . . . . . 1 Tunneler 1 | . . . . . . . 1 . . . . . . . . Hauler 15 | . 2 . 1 . . . 6 3 . . . . 1 . 2 Recycler 6 | . . . . 1 . . 3 2 . . . . . . . Operator 8 | . 3 . . . . . 4 . . . . . 1 . . Watcher 6 | . . . 2 . . . 2 1 . . . . . . 1 Swarmer 48 | . 9 . 8 . . 11 3 6 . . . 7 4 . . Grunt 65 | . 2 4 10 2 . 3 32 7 . . . 5 . . . Brawler 3 | . . . 1 . . . 1 . . . . 1 . . . Duelist 1 | . . . . . . . 1 . . . . . . . . Protector 2 | . . . . . . . . 2 . . . . . . . Sentry 16 | . . 2 3 . . . 9 2 . . . . . . . Specialist 5 | . . . . . . . 2 3 . . . . . . . Hunter 7 | . . . . . . 1 2 4 . . . . . . . Programmer 8 | . . . . . . . . 5 . . . . 1 . 2 Heavy 1 | . . . . . . . 1 . . . . . . . . Thief 1 | . . . . . . . . . . 1 . . . . . Assembled 6 | . . 6 . . . . . . . . . . . . . Best Kill Streak 11 | . 3 2 5 2 . 7 8 11 . 1 . 4 5 . 1 Combat Bots Only 10 | . 3 2 4 2 . 7 7 10 . 1 . 4 4 . 1 Max Kills in Single Turn 5 | . 2 1 4 1 . 3 3 3 . 1 . 3 5 . 1 Gunslinging 1 | . . . . . . 1 . 1 . . . . . . . Exploded 4 | . 2 1 4 . . 3 3 3 . 1 . 3 4 . . Melee 1 | . . . . . . . . . . . . 1 1 . 1 Uniques/NPCs Destroyed . | . . . . . . . . . . . . . . . . Combat | -11 -10 -10 -9 -9 -9 -8 -8 -7 -7 -7 -7 -6 -6 -6 -6 -------- Run | Scr Mat Min Mat Min Exi Min Mat Fac Low Low Zio Pro Fac Was Fac Damage Taken 8285 | . 310 843 611 . . 328 3437 2283 . . . 125 98 . 250 Core 1083 | . 71 164 65 . . 48 219 310 . . . 59 58 . 89 Absorbed by Shields 40 | . . . . . . . 40 . . . . . . . . Redirected to Shielding 50 | . . 50 . . . . . . . . . . . . . Regen/Repaired (Parts) 18 | . . . . . . . . . . . . . 18 . . Core Remaining (%) 56 | 100 . 6 . . . 71 60 . . . . 47 . . . Volleys Fired 502 | . 52 56 53 8 . 20 200 80 3 4 . 9 1 . 16 Largest 2 | . 2 2 2 2 . 2 2 2 1 1 . 1 1 . 1 Hottest 80 | . 40 43 50 50 . 50 53 80 40 80 . 80 80 . 65 Shots Fired 869 | . 100 96 100 16 . 35 344 145 3 4 . 9 1 . 16 Gun 788 | . 96 89 94 16 . 30 331 132 . . . . . . . Cannon 20 | . . . . . . . . 1 3 . . . . . 16 Launcher 61 | . 4 7 6 . . 5 13 12 . 4 . 9 1 . . Special . | . . . . . . . . . . . . . . . . Kinetic 778 | . 96 89 94 16 . 30 331 122 . . . . . . . Thermal 24 | . . . . . . . . 10 . . . . . . 14 Explosive 61 | . 4 7 6 . . 5 13 12 . 4 . 9 1 . . Electromagnetic 6 | . . . . . . . . 1 3 . . . . . 2 Robot Hit Streak 28 | . 10 9 23 4 . 7 19 28 . . . . . . . Robot Miss Streak 8 | . 3 4 5 3 . 5 8 3 . . . . . . . Penetration Max 1 | . . . . . . . 1 . . . . . . . . Secondary Targets 11 | . . . 2 . . 2 3 4 . . . . . . . Max Gunslinging Chain 1 | . . . 1 . . 1 1 1 . . . . . . . Shots Hit Robots 629 | . 63 52 74 12 . 29 252 117 . . . 3 15 . 12 Core Hits 388 | . 21 26 45 6 . 18 148 86 . 2 . 19 11 . 6 Critical Kills 6 | . . . . . . . 3 3 . . . . . . . Critical Parts Destroyed 7 | . . . . . . 1 1 5 . . . . . . . Critical Strikes 15 | . . . . . . 1 5 8 . . . . 1 . . Destroy 14 | . . . . . . 1 5 8 . . . . . . . Impale 1 | . . . . . . . . . . . . . 1 . . Melee Attacks 162 | . . . . . . . . . . . 1 8 52 . 101 Impact . | . . . . . . . . . . . . . . . . Slashing 99 | . . . . . . . . . . . 1 . 1 . 97 Piercing 63 | . . . . . . . . . . . . 8 51 . 4 Sneak Attacks 5 | . . . . . . . . . . . . . 3 . 2 Combat Hostiles . | . . . . . . . . . . . . . . . . Follow-up Attacks . | . . . . . . . . . . . . . . . . Damage Inflicted 17883 | . 1035 862 1846 251 . 866 5447 4408 . 369 . 1266 938 . 595 Guns 9753 | . 829 692 1111 251 . 419 4276 2175 . . . . . . . Cannons 37 | . . . . . . . . 37 . . . . . . . Explosions 6781 | . 206 167 735 . . 447 1171 2196 . 369 . 1188 302 . . Melee 1309 | . . . . . . . . . . . . 78 636 . 595 Ramming 3 | . . 3 . . . . . . . . . . . . . Kinetic 9607 | . 829 692 1111 251 . 419 4276 2029 . . . . . . . Thermal 232 | . . . 86 . . . . 146 . . . . . . . Explosive 6695 | . 206 167 649 . . 447 1171 2196 . 369 . 1188 302 . . Electromagnetic 37 | . . . . . . . . 37 . . . . . . . Impact . | . . . . . . . . . . . . . . . . Slashing 625 | . . . . . . . . . . . . . 30 . 595 Piercing 684 | . . . . . . . . . . . . 78 606 . . Highest Corruption 7 | . . . . . . . . 5 5 1 1 . 2 2 7 Average Corruption 2 | . . . . . . . . 1 3 1 1 . 1 2 2 Corruption Purged 4 | . . . . . . . . . 4 . . . . . . Corruption Blocked . | . . . . . . . . . . . . . . . . Effects 36 | . . . . . . . . 6 5 . . . 9 1 15 Message Errors 11 | . . . . . . . . 1 4 . . . 1 . 5 Matter Fused 11 | . . . . . . . . 3 1 . . . 1 1 5 Heat Flow Errors 3 | . . . . . . . . . . . . . 2 . 1 Energy Discharges 5 | . . . . . . . . 1 . . . . 2 . 2 Parts Rejected 1 | . . . . . . . . . . . . . 1 . . Data Loss (minor) 3 | . . . . . . . . . . . . . 2 . 1 Misfires 1 | . . . . . . . . 1 . . . . . . . Alerts 1 | . . . . . . . . . . . . . . . 1 Overload Shots . | . . . . . . . . . . . . . . . . Overflow Damage 366 | . 39 . 50 . . 65 32 16 . 24 . 24 61 . 55 Projectiles . | . . . . . . . . . . . . . . . . Explosions 253 | . 39 . 50 . . 65 32 16 . 24 . 18 9 . . Melee 113 | . . . . . . . . . . . . 6 52 . 55 Knockbacks . | . . . . . . . . . . . . . . . . Impact . | . . . . . . . . . . . . . . . . Kinetic . | . . . . . . . . . . . . . . . . Secondary . | . . . . . . . . . . . . . . . . Self-Inflicted Damage 173 | . 48 41 31 . . 26 . 27 . . . . . . . Shots 6 | . 2 1 1 . . 1 . 1 . . . . . . . Rammed 1 | . . 1 . . . . . . . . . . . . . Targets Rammed 1 | . . 1 . . . . . . . . . . . . . Kicked . | . . . . . . . . . . . . . . . . Crushed . | . . . . . . . . . . . . . . . . Highest Temperature 326 | . . 13 4 . . 20 298 326 . 113 . 113 214 . 96 Average Temperature 40 | . . 6 1 . . 8 44 37 . 65 . 48 75 . 43 Received Heat Transfer 2540 | . 12 279 216 . . 63 1394 531 . . . . 36 . 9 Siege Activations . | . . . . . . . . . . . . . . . . Robots Corrupted . | . . . . . . . . . . . . . . . . Combat Hostiles . | . . . . . . . . . . . . . . . . Parts Fried . | . . . . . . . . . . . . . . . . Impact Corruptions . | . . . . . . . . . . . . . . . . Robots Melted . | . . . . . . . . . . . . . . . . Combat Hostiles . | . . . . . . . . . . . . . . . . Parts Melted 1 | . . . . . . . . 1 . . . . . . . Heat Transferred 346 | . . . 50 . . . . 296 . . . . . . . Parts Sabotaged . | . . . . . . . . . . . . . . . . Parts Stolen . | . . . . . . . . . . . . . . . . Parts Stripped . | . . . . . . . . . . . . . . . . Power Chain Reactions . | . . . . . . . . . . . . . . . . Missiles Intercepted . | . . . . . . . . . . . . . . . . Alert | -11 -10 -10 -9 -9 -9 -8 -8 -7 -7 -7 -7 -6 -6 -6 -6 ------- Run | Scr Mat Min Mat Min Exi Min Mat Fac Low Low Zio Pro Fac Was Fac Peak Influence 733 | . 189 216 450 302 . 365 733 617 . . . . 601 147 365 Initial 333 | . . 20 1 175 . . 13 333 . . . . 177 70 102 Average 215 | . 82 40 233 182 . 123 342 335 . . . . 285 91 177 Maximum Alert Level 3 | . . 1 2 1 . 1 3 2 . . . . 2 . 1 Low Security (%) 50 | 100 100 95 30 64 . 86 20 . . . . . 25 100 65 Level 1 40 | . . 4 63 35 . 13 53 84 . . . . 60 . 34 Level 2 8 | . . . 5 . . . 22 15 . . . . 13 . . Level 3 1 | . . . . . . . 4 . . . . . . . . Level 4 . | . . . . . . . . . . . . . . . . Level 5 . | . . . . . . . . . . . . . . . . High Security . | . . . . . . . . . . . . . . . . Max Security . | . . . . . . . . . . . . . . . . Sterilizations 1 | . . . . . . . 1 . . . . . . . . Squads Dispatched 30 | . 3 . 2 . . . 9 4 . . . . 6 . 6 Investigation 8 | . . . 1 . . . 1 . . . . . 4 . 2 Extermination 4 | . . . . . . . . 2 . . . . 1 . 1 Reinforcement 17 | . 3 . 1 . . . 7 2 . . . . 1 . 3 Assault 1 | . . . . . . . 1 . . . . . . . . Garrison . | . . . . . . . . . . . . . . . . Intercept . | . . . . . . . . . . . . . . . . Searches Triggered 1 | . . . . . . . . . . . . . 1 . . Construction Impeded 1 | . . . . . . . . 1 . . . . . . . Haulers Reinforced 1 | . . . . . . . . 1 . . . . . . . Active Scanning Responses . | . . . . . . . . . . . . . . . . Cargo Convoy Interrupts 1 | . . . . . . . . 1 . . . . . . . Stealth | -11 -10 -10 -9 -9 -9 -8 -8 -7 -7 -7 -7 -6 -6 -6 -6 --------- Run | Scr Mat Min Mat Min Exi Min Mat Fac Low Low Zio Pro Fac Was Fac Distress Signals 17 | . 1 . 3 . . . 8 2 . . . . 2 . 1 Communications Jammed . | . . . . . . . . . . . . . . . . Distress Signals . | . . . . . . . . . . . . . . . . Times Spotted 303 | . 34 19 26 8 . 15 94 45 . 1 . 1 27 3 30 Peak Tracking Total 14 | . 5 3 5 3 . 6 7 14 . 1 . 3 6 2 6 Tactical Retreats 29 | . . 5 . . . . 4 2 . 1 . . 8 . 9 Traps | -11 -10 -10 -9 -9 -9 -8 -8 -7 -7 -7 -7 -6 -6 -6 -6 ------- Run | Scr Mat Min Mat Min Exi Min Mat Fac Low Low Zio Pro Fac Was Fac Traps Triggered 12 | . . . 1 . . . 2 . . . . . 7 . 2 Indirectly . | . . . . . . . . . . . . . . . . Trap Hack Attempts . | . . . . . . . . . . . . . . . . Triggered . | . . . . . . . . . . . . . . . . Disarmed . | . . . . . . . . . . . . . . . . Reprogrammed . | . . . . . . . . . . . . . . . . Reused . | . . . . . . . . . . . . . . . . Traps Extracted . | . . . . . . . . . . . . . . . . Installed . | . . . . . . . . . . . . . . . . Triggered . | . . . . . . . . . . . . . . . . Machines | -11 -10 -10 -9 -9 -9 -8 -8 -7 -7 -7 -7 -6 -6 -6 -6 ---------- Run | Scr Mat Min Mat Min Exi Min Mat Fac Low Low Zio Pro Fac Was Fac Machines Disabled 19 | . 2 1 3 4 . . 6 1 . . . . 1 . 1 Max in Single Turn 2 | . 1 1 2 2 . . 2 1 . . . . 1 . 1 Garrison Access 3 | . . . . . . . 1 1 . . . . 1 . . Machines Sabotaged . | . . . . . . . . . . . . . . . . Garrisons Compromised . | . . . . . . . . . . . . . . . . Overloaded Fab Kills . | . . . . . . . . . . . . . . . . Hacking | -11 -10 -10 -9 -9 -9 -8 -8 -7 -7 -7 -7 -6 -6 -6 -6 --------- Run | Scr Mat Min Mat Min Exi Min Mat Fac Low Low Zio Pro Fac Was Fac Machines Accessed 45 | . 4 . 4 . 1 1 4 2 . 1 . 1 18 . 9 Terminals 26 | . 2 . 4 . . 1 3 . . . . 1 9 . 6 Fabricators 6 | . . . . . . . . 1 . . . . 4 . 1 Repair Stations 2 | . . . . . . . . . . . . . 1 . 1 Recycling Units 2 | . 2 . . . . . . . . . . . . . . Scanalyzers 2 | . . . . . . . . . . . . . 2 . . Garrison Access 5 | . . . . . . . 1 1 . . . . 2 . 1 Total Hacks 119 | . 11 . 10 . 1 2 16 4 . 1 . 1 51 . 22 Successful 61 | . 6 . 4 . 1 1 6 2 . 1 . 1 29 . 10 Failed 57 | . 5 . 6 . . 1 10 2 . . . . 21 . 12 Catastrophic 10 | . . . 3 . . 1 1 . . . . . 2 . 3 Database Lockouts 1 | . . . . . . . . . . . . . 1 . . Manual 63 | . 7 . 10 . . 2 10 . . . . . 24 . 10 Terminals 80 | . 7 . 10 . . 2 14 . . . . 1 31 . 15 Fabricators 11 | . . . . . . . . 2 . . . . 7 . 2 Repair Stations 5 | . . . . . . . . . . . . . 2 . 3 Recycling Units 4 | . 4 . . . . . . . . . . . . . . Scanalyzers 4 | . . . . . . . . . . . . . 4 . . Garrison Access 13 | . . . . . . . 2 2 . . . . 7 . 2 Terminal Hacks 34 | . 4 . 4 . 1 1 5 . . 1 . 1 12 . 5 Record 2 | . . . . . 1 . . . . . . 1 . . . Part Schematic 2 | . . . 1 . . . . . . . . . 1 . . Robot Analysis 3 | . 2 . 1 . . . . . . . . . . . . Open Door 1 | . . . . . . . . . . 1 . . . . . Level Access Points 1 | . . . . . . 1 . . . . . . . . . Branch Access Points 2 | . . . 1 . . . . . . . . . 1 . . Machine Index 2 | . . . . . . . . . . . . . 1 . 1 Alert Level 6 | . 1 . . . . . 2 . . . . . 2 . 1 Unreport Threat 4 | . . . . . . . 2 . . . . . 2 . . Locate Traps 4 | . . . . . . . . . . . . . 4 . . Recall Investigation 2 | . . . . . . . . . . . . . 1 . 1 Recall Reinforcements 1 | . 1 . . . . . . . . . . . . . . Hauler Manifests 2 | . . . 1 . . . 1 . . . . . . . . Registered Components 1 | . . . . . . . . . . . . . . . 1 Zone Layout 1 | . . . . . . . . . . . . . . . 1 Fabricator Hacks 9 | . . . . . . . . 1 . . . . 6 . 2 Load Schematic 3 | . . . . . . . . . . . . . 2 . 1 Build 6 | . . . . . . . . 1 . . . . 4 . 1 Repair Station Hacks 3 | . . . . . . . . . . . . . 2 . 1 Scan Component 2 | . . . . . . . . . . . . . 1 . 1 Repair 1 | . . . . . . . . . . . . . 1 . . Recycling Unit Hacks 2 | . 2 . . . . . . . . . . . . . . Retrieve Components 2 | . 2 . . . . . . . . . . . . . . Scanalyzer 4 | . . . . . . . . . . . . . 4 . . Insert Component 2 | . . . . . . . . . . . . . 2 . . Analyze 2 | . . . . . . . . . . . . . 2 . . Garrison Access Hacks 3 | . . . . . . . 1 1 . . . . 1 . . Seal Access 3 | . . . . . . . 1 1 . . . . 1 . . Unauthorized Hacks 6 | . . . . . . . . . . . . . 4 . 2 Terminals 6 | . . . . . . . . . . . . . 4 . 2 Track 1 | . . . . . . . . . . . . . 1 . . Assimilate 1 | . . . . . . . . . . . . . 1 . . Botnet 3 | . . . . . . . . . . . . . 1 . 2 Operators 1 | . . . . . . . . . . . . . 1 . . Fabricators . | . . . . . . . . . . . . . . . . Repair Stations . | . . . . . . . . . . . . . . . . Recycling Units . | . . . . . . . . . . . . . . . . Scanalyzers . | . . . . . . . . . . . . . . . . Garrison Access . | . . . . . . . . . . . . . . . . Data Cores Recovered 1 | . . . . . . . 1 . . . . . . . . Used . | . . . . . . . . . . . . . . . . Hacking Detections 35 | . 3 . 4 . . 1 3 1 . . . . 16 . 7 Full Trace Events 5 | . . . . . . . . . . . . . 3 . 2 Feedback Events . | . . . . . . . . . . . . . . . . Feedback Blocked . | . . . . . . . . . . . . . . . . Robot Schematics Acquired 4 | . . . . . . . . . . . 4 . . . . Robots Built . | . . . . . . . . . . . . . . . . Authchips . | . . . . . . . . . . . . . . . . Time . | . . . . . . . . . . . . . . . . Total Robot Build Rating . | . . . . . . . . . . . . . . . . Part Schematics Acquired 17 | . . . 1 . . . . . . . 13 . 3 . . Parts Built 7 | . . . . . . . . 1 . . . . 5 . 1 Authchips . | . . . . . . . . . . . . . . . . Time 635 | . . . . . . . . 117 . . . . 442 . 76 Total Part Build Rating 44 | . . . . . . . . 7 . . . . 32 . 5 Parts Repaired 1 | . . . . . . . . . . . . . 1 . . Time 51 | . . . . . . . . . . . . . 51 . . Parts Recycled . | . . . . . . . . . . . . . . . . Recycled Matter . | . . . . . . . . . . . . . . . . Retrieved Matter . | . . . . . . . . . . . . . . . . Retrieved Components 16 | . 16 . . . . . . . . . . . . . . Parts Scanalyzed 2 | . . . . . . . . . . . . . 2 . . Part Schematics Acquired 2 | . . . . . . . . . . . . . 2 . . Parts Damaged . | . . . . . . . . . . . . . . . . Bothacking | -11 -10 -10 -9 -9 -9 -8 -8 -7 -7 -7 -7 -6 -6 -6 -6 ------------ Run | Scr Mat Min Mat Min Exi Min Mat Fac Low Low Zio Pro Fac Was Fac Used RIF Installer . | . . . . . . . . . . . . . . . . Robots Hacked . | . . . . . . . . . . . . . . . . Non-combat . | . . . . . . . . . . . . . . . . Combat . | . . . . . . . . . . . . . . . . Robot Hacks Applied . | . . . . . . . . . . . . . . . . Relay Couplers Released . | . . . . . . . . . . . . . . . . Fabnet Peak Effective % . | . . . . . . . . . . . . . . . . Robots Rewired . | . . . . . . . . . . . . . . . . Allies Hacked . | . . . . . . . . . . . . . . . . Hacks Repelled . | . . . . . . . . . . . . . . . . Allies | -11 -10 -10 -9 -9 -9 -8 -8 -7 -7 -7 -7 -6 -6 -6 -6 -------- Run | Scr Mat Min Mat Min Exi Min Mat Fac Low Low Zio Pro Fac Was Fac Total Allies 26 | . . 1 . 3 . . . . . . 2 . 1 19 . Largest Group 19 | . . 1 . 3 . . . . . . 2 2 1 19 . Highest-Rated Group 687 | . . 31 . 40 . . . . . . 59 59 23 687 . Highest-Rated Ally 50 | . . 31 . 16 . . . . . . 39 39 23 50 . Total Orders . | . . . . . . . . . . . . . . . . Ally Attacks 177 | . . 15 . 28 . . . . . . . 11 . 123 . Total Damage 6802 | . . 147 . 296 . . . . . . . 164 . 6195 . Kills 22 | . . 3 . 5 . . . . . . . 1 . 13 . Allies Corrupted . | . . . . . . . . . . . . . . . . Allies Melted . | . . . . . . . . . . . . . . . . Intel | -11 -10 -10 -9 -9 -9 -8 -8 -7 -7 -7 -7 -6 -6 -6 -6 ------- Run | Scr Mat Min Mat Min Exi Min Mat Fac Low Low Zio Pro Fac Was Fac Robot Analysis Total 3 | . 2 . 1 . . . . . . . . . . . . Derelict Logs Recovered 6 | . . 2 . 1 . . . . 1 1 1 . . . . Drone Launches . | . . . . . . . . . . . . . . . . Drone Recoveries . | . . . . . . . . . . . . . . . . Exploration | -11 -10 -10 -9 -9 -9 -8 -8 -7 -7 -7 -7 -6 -6 -6 -6 ------------- Run | Scr Mat Min Mat Min Exi Min Mat Fac Low Low Zio Pro Fac Was Fac Turns Passed 14696 | 67 1759 1582 1061 840 595 852 3045 1891 224 103 513 182 857 120 1005 Spaces Moved 11416 | 39 675 568 518 551 405 520 1402 988 378 289 1100 435 1595 276 1677 Core 14 | 9 . . . . . . 5 . . . . . . . . Treads 5071 | 30 675 568 518 551 405 520 1237 567 . . . . . . . Legs 53 | . . . . . . . 53 . . . . . . . . Wheels 361 | . . . . . . . 107 254 . . . . . . . Hover . | . . . . . . . . . . . . . . . . Flight 5917 | . . . . . . . . 167 378 289 1100 435 1595 276 1677 Fastest Speed 28 | 50 160 240 145 145 145 145 145 31 31 31 31 31 31 31 28 Average Speed 101 | 147 234 240 157 145 145 151 165 154 31 31 31 31 31 31 29 Slowest Speed 850 | 160 240 240 160 145 145 153 850 245 31 31 31 31 31 31 102 Overloaded Moves . | . . . . . . . . . . . . . . . . Propulsion Burnouts . | . . . . . . . . . . . . . . . . Robots Hopped 16 | . . . . . . . . . . . . . 8 . 8 Cave-ins Triggered 1 | . . . . . . . . . . . . . . . 1 Exploration Rate (%) 68 | 5 92 99 55 98 86 95 98 21 60 42 84 59 50 96 49 Regions Visited 15 Branch Regions 8 Pre-discovered Areas 2 | . . . . 1 . . . . . . 1 . . . . Known Exits Taken 7 | . . . 1 . . 1 . 1 1 1 1 1 . . . Unknown Exits Taken 6 | 1 1 1 . 1 1 . 1 . . . . . . . . Scrap Searched 14 | . . . . 1 . 1 . . 2 3 4 3 . . . Spaces Dug 123 | . . . . . . . 15 . . . . . 19 . 89 Terrain Destroyed 532 | . 29 41 38 . . 52 93 53 . 19 . 90 27 . 90 Melee 96 | . . . . . . . . . . . . . 19 . 77 Projectile 13 | . . . . . . . . . . . . . . . 13 AOE 423 | . 29 41 38 . . 52 93 53 . 19 . 90 8 . . Terrain Rammed . | . . . . . . . . . . . . . . . . Walls Destroyed . | . . . . . . . . . . . . . . . . Machines Disabled . | . . . . . . . . . . . . . . . . Actions | -11 -10 -10 -9 -9 -9 -8 -8 -7 -7 -7 -7 -6 -6 -6 -6 --------- Run | Scr Mat Min Mat Min Exi Min Mat Fac Low Low Zio Pro Fac Was Fac Total 13434 | 46 753 688 681 576 416 547 1768 1214 481 297 1270 464 1897 309 2027 Wait 871 | . . 50 50 18 . . 67 48 95 . 163 . 176 34 170 Move 11370 | 38 674 567 517 550 404 519 1401 987 377 288 1099 434 1579 275 1661 Hop 15 | . . . . . . . . . . . . . 8 . 7 Pick Up 103 | 2 20 2 21 . 6 1 22 17 1 1 1 . 8 . 1 Fast Attach 67 | 6 1 . 1 . . . 25 25 . . 2 1 3 . 3 Attach 63 | . . 7 3 . . 1 9 11 2 2 1 6 4 . 17 Detach 50 | . 1 . 1 . . . 1 13 1 2 2 5 4 . 20 Swap 62 | . 2 5 12 . . 4 21 8 1 . . . 2 . 7 Drop 95 | . 3 . 23 . 6 2 22 25 1 . 1 1 6 . 5 Fire 502 | . 52 56 53 8 . 20 200 80 3 4 . 9 1 . 16 Melee 162 | . . . . . . . . . . . 1 8 52 . 101 Ram . | . . . . . . . . . . . . . . . . Kick . | . . . . . . . . . . . . . . . . Crush 1 | . . 1 . . . . . . . . . . . . . Escape Stasis 73 | . . . . . . . . . . . . . 54 . 19 Rewire . | . . . . . . . . . . . . . . . . Trap . | . . . . . . . . . . . . . . . . Miscellaneous . | . . . . . . . . . . . . . . . . Route ------- -11/Scrapyard -10/Materials (discovered 5 exits: *Mat x3 / [*Min x2]) -10/Mines (discovered 2 exits: *Mat x2) -9/Materials (discovered 3 exits: *Min / *Sto x2) -9/Mines (discovered 4 exits: *Mat x2 / *Exi / *Zio) -9/Exiles (discovered 2 exits: *Min x2) -8/Mines (discovered 2 exits: *Mat x2) -8/Materials (discovered 3 exits: *Fac x3) -7/Factory (discovered 2 exits: *Fac / *Low) -7/Lower Caves -7/Lower Caves -7/Zion -6/Proximity Caves -6/Factory (discovered 6 exits: *Fac x2 / Low x2 / Ext x2) -6/Waste -6/Factory (discovered 3 exits: *Fac x2 / *Low) History --------- Turn | Location | Event 12 | -11/Scrapyard | Discovered new exit (range 15) 68 | -11/Scrapyard | Entered Materials 209 | -10/Materials | Discovered new exit (range 7) 307 | -10/Materials | Build established: Mutant 450 | -10/Materials | Discovered new exit (range 16) 700 | -10/Materials | Discovered new exit (range 3) 703 | -10/Materials | Discovered new exit (range 14) 1148 | -10/Materials | Discovered new exit (range 14) 1827 | -10/Materials | Entered Mines 1852 | -10/Mines | Learned Materials emergency access door positions 1923 | -10/Mines | Discovered new exit (range 10) 1941 | -10/Mines | Assembled infested the area 1946 | -10/Mines | Assisted by a Guerilla fighting off Assembled 2236 | -10/Mines | Core integrity fell below 50% 2319 | -10/Mines | Lost 3 parts (1p1n1u) 2424 | -10/Mines | Core integrity fell below 20% 2454 | -10/Mines | Lost 3 parts (1n2w) 2490 | -10/Mines | Learned Materials security intel 2694 | -10/Mines | Found a damaged Exp. Sensor Array with a note attached 2704 | -10/Mines | Found Prototype Device 2852 | -10/Mines | Received a Mining Laser from a helpful Derelict 3316 | -10/Mines | Discovered new exit (range 3) 3409 | -10/Mines | Entered Materials 3409 | -9/Materials | Evolved 2 slots: Propulsion x1, Utility x1 3410 | -9/Materials | Identified Exp. Sensor Array 3972 | -9/Materials | Identified exit to Mines 3972 | -9/Materials | Identified exit to Storage 4470 | -9/Materials | Entered Mines 4484 | -9/Mines | Assisted by bots powering up and referring to "LRC-V3" 4542 | -9/Mines | Learned Materials stockpile data 4546 | -9/Mines | Discovered new exit (range 7) 4735 | -9/Mines | Deemed a non-threat by the Exiles lab entrance 4735 | -9/Mines | Discovered new exit (range 5) 4804 | -9/Mines | A Derelict revealed a hidden shortcut to a safe place 5017 | -9/Mines | Found a hidden stash of uninstalled traps 5115 | -9/Mines | Learned location of Storage (-9) 5197 | -9/Mines | Discovered new exit (range 15) 5310 | -9/Mines | Entered Exiles 5310 | -9/Exiles | Found Exiles lab abandoned 5335 | -9/Exiles | Discovered new exit (range 15) 5892 | -9/Exiles | Discovered new exit (range 10) 5905 | -9/Exiles | Entered Mines 6127 | -8/Mines | Identified exit to Materials 6213 | -8/Mines | Destroyed 7 combat bots 6321 | -8/Mines | Destroyed 7 combat bots 6757 | -8/Mines | Entered Materials 6757 | -8/Materials | Evolved 2 slots: Propulsion x1, Utility x1 6897 | -8/Materials | Destroyed 7 combat bots 7151 | -8/Materials | Discovered new exit (range 10) 7687 | -8/Materials | Discovered new exit (range 15) 8257 | -8/Materials | Discovered new exit (range 14) 8358 | -8/Materials | Lost 4 parts (1p2n1w) 8486 | -8/Materials | Lost 7 parts (1p2n2u2w) 8898 | -8/Materials | Build established: Scavenger-Mutant 9157 | -8/Materials | First assault squad dispatched 9615 | -8/Materials | Build established: Mutant 9698 | -8/Materials | Sterilization system engaged 9698 | -8/Materials | Non-combat units ordered to evacuate 9798 | -8/Materials | Combat units ordered to evacuate 9802 | -8/Materials | Entered Factory 9802 | -7/Factory | Evolved 2 slots: Utility x2 10477 | -7/Factory | Discovered new exit (range 15) 10514 | -7/Factory | Identified exit to Lower Caves 10555 | -7/Factory | Fabricated Adv. Target Analyzer (x1) 10680 | -7/Factory | Discovered new exit (range 19) 10707 | -7/Factory | Identified exit to Factory 11531 | -7/Factory | Cargo convoy interrupted 11582 | -7/Factory | Destroyed 10 combat bots 11624 | -7/Factory | Lost 7 parts (1p3n1u2w) 11626 | -7/Factory | Found Prototype Launcher 11626 | -7/Factory | Identified Mni. Smartbomb Launcher 11667 | -7/Factory | Found Mni. Smartbomb Launcher 11693 | -7/Factory | Entered Lower Caves 11694 | -7/Lower Caves | Encountered a Warlord checkpoint 11776 | -7/Lower Caves | Spotted B-75 Beast 11913 | -7/Lower Caves | Discovered new exit (range 12) 11917 | -7/Lower Caves | Identified exit to Lower Caves 11917 | -7/Lower Caves | Entered another Lower Caves area 12019 | -7/Lower Caves | Discovered new exit (range 5) 12020 | -7/Lower Caves | Encountered a Warlord checkpoint 12020 | -7/Lower Caves | Identified exit to Zion 12020 | -7/Lower Caves | Entered Zion 12037 | -7/Zion | Discovered new exit (range 9) 12053 | -7/Zion | System corruption cleaned by Quarantine Array 12066 | -7/Zion | Learned Factory garrison access intel 12133 | -7/Zion | Given the Hacking Drone Bay 12195 | -7/Zion | Gained Derelict followers 12199 | -7/Zion | Build established: Hacker-Scout 12371 | -7/Zion | Identified exit to Proximity Caves 12533 | -7/Zion | Entered Proximity Caves 12533 | -6/Proximity Caves | Accompanied by 2 allies 12624 | -6/Proximity Caves | Core integrity fell below 50% 12709 | -6/Proximity Caves | Discovered exit to Factory (range 18) 12715 | -6/Proximity Caves | Entered Factory 12715 | -6/Factory | Evolved 2 slots: Propulsion x1, Utility x1 12716 | -6/Factory | Identified exit to Extension 12717 | -6/Factory | Loaded intel: 4 garrison access locations 12953 | -6/Factory | Repaired Imp. Flight Unit 12981 | -6/Factory | Identified exit to Lower Caves 13039 | -6/Factory | Fabricated Nanoactuators (x2) 13125 | -6/Factory | Central database locked down 13132 | -6/Factory | Spotted B-75 Beast 13251 | -6/Factory | Discovered new exit (range 19) 13261 | -6/Factory | Identified exit to Factory 13275 | -6/Factory | Fabricated Imp. Cesium-ion Thruster? 13415 | -6/Factory | Search patrols dispatched 13417 | -6/Factory | Discovered exit to Factory (range 12) 13453 | -6/Factory | Fabricated Lgt. Antimatter Reactor? 13572 | -6/Factory | Manually triggered Chute Trap 13572 | -6/Factory | Sucked down chute 13572 | -6/Factory | Entered Waste 13573 | -6/Waste | Met a frightened Derelict 13575 | -6/Waste | Spotted C-40 Crusher 13578 | -6/Waste | Warlord forces began an assault 13590 | -6/Waste | Spotted C-40 Crusher 13605 | -6/Waste | Allies destroyed C-40 Crusher 13607 | -6/Waste | Allies destroyed C-40 Crusher 13624 | -6/Waste | Spotted C-40 Crusher 13631 | -6/Waste | Spotted C-40 Crusher 13631 | -6/Waste | Allies destroyed C-40 Crusher 13633 | -6/Waste | Spotted C-40 Crusher 13644 | -6/Waste | Allies destroyed C-40 Crusher 13650 | -6/Waste | Allies destroyed C-40 Crusher 13659 | -6/Waste | Spotted C-40 Crusher 13660 | -6/Waste | Discovered new exit (range 21) 13685 | -6/Waste | Allies destroyed C-40 Crusher 13691 | -6/Waste | Identified exit to Factory 13692 | -6/Waste | Entered Factory 14331 | -6/Factory | Discovered exit to Lower Caves (range 17) 14413 | -6/Factory | Discovered exit to Factory (range 19) 14508 | -6/Factory | Spotted B-75 Beast 14524 | -6/Factory | Discovered exit to Factory (range 19) 14644 | -6/Factory | Crushed by falling debris 14685 | -6/Factory | Fabricated Biomechanical Wings? 14697 | -6/Factory | Self-destructed Last Messages --------------- Trojan loaded successfully. Testing... Terminal linked with 1 system. Awaiting botnet instructions. 14683_ Triggered Proton Bomb Trap. 14683_ A bubble of electromagnetic force engulfs the area. 14683_ Imp. Flight Unit destroyed. 14683_ Proton Bomb Trap short circuited. 14683_ A bubble of electromagnetic force engulfs the area. 14683_ Nuclear Reactor explodes. 14683_ Door malfunctions. 14684_ O-24 Administrator: "IFF HANDSHAKE FAILED. SECURING TERMINAL." 14685_ >> FABRICATOR: Completed Biomechanical Wings? 14687_ System corrupted: Matter fused (-9). 14691_ O-24 Administrator uses terminal to summon reinforcements. 14691_ ALERT: Hostiles spotted, dispatching reinforcements to Terminal F010. 14691_ O-24 Administrator locks terminal. 14693_ Destroyed Imp. Hover Unit. 14695_ ALERT: Cargo convoy en route, clear transfer corridor. Map ----- +----------------------------------------------------+ | | | | | | | | | | | | | | | | | | | | | | | | | | | | | | | | | | | | | | | | | ???????????????????###############???????????? | | ???????????????????# #???????????? | | ???????????????????# """ """ """ #???????????? | | #T ???????????????## """ """ T" #???????????? | | ?????????????? # """o""" """ #???????????? | | #????????????# # @ #???????????? | | #????????????" # """ """ """ #???????????? | | #???????????? # """ """ """ #???????????? | | #????????????# # """ """ """ #???????????? | | #????????????# # #???????????? | | #????????????# #! ] #???????????? | | #????????????# # ! #???????????? | | #???????????## #######???????g???? | | #???????????# ############??????? | | #???????????# !! [ +????? | | #???????????# !! #??????? | | #???? ??????# ! """ !! #??????? | | ???# """????#!! """ ! #??????? | | ????+ """""??#! """ #????? | | #?????# """ "# #????? | | #?????# + #????? | | #?????########## ######??????? | | #???????# ## #???????????? | | ######### "" ## #???????????? | | T ### #???????????? | | ######### #?# #???????????? | | #???????# ### ##?# +???????????? | | #???????#######?#+#??# #???????????? | | #????????????????????######### ##???????????? | | #????????????????????????????? #????????????? | +----------------------------------------------------+ Best States ------------- Heat Dissipation 62 Energy Generation 19 Energy Capacity 290 Matter Stores 300 Matter Capacity 300 Sight Range 22 Robot Scan Range 20 Terrain Scan Density 10 Armor Coverage 600 Resistance: TH 10 Weapon Shielding 33 Melee Speed Boost 30 Evasion (%) 64 Targeting Accuracy 16 Target Analysis 8 Recoil Reduction 4 Offensive Hacking 20 Defensive Hacking 10 Item Schematics ----------------- Huge Storage Unit | -9/Materials | Hacked Imp. Trap Extractor | -7/Zion | Archive Imp. Cryofiber Web | -7/Zion | Archive Mak. Axe | -7/Zion | Archive EM Disruption Field | -7/Zion | Archive Tesla Rifle | -7/Zion | Archive Imp. Medium Treads | -7/Zion | Archive Mak. Salvage Targeting Computer | -7/Zion | Archive Adv. Terrain Scanner | -7/Zion | Archive Imp. EM Pulse Cannon | -7/Zion | Archive Point Defense System | -7/Zion | Archive Hvy. Riot Gun | -7/Zion | Archive Imp. Shield Generator | -7/Zion | Archive Mak. Cloaking Device | -7/Zion | Archive Mni. Smartbomb Launcher | -6/Factory | Scanalyzed Imp. Cesium-ion Thruster | -6/Factory | Hacked Biomechanical Wings | -6/Factory | Scanalyzed Robot Schematics ------------------ K-01 Serf | -7/Zion | Archive T-07 Excavator | -7/Zion | Archive M-14 Sweeper | -7/Zion | Archive Y-72 Warden | -7/Zion | Archive Fabricated ------------ Adv. Target Analyzer | x1 | -7/Factory | Preloaded Nanoactuators | x2 | -6/Factory | Preloaded Imp. Cesium-ion Thruster | x1 | -6/Factory Lgt. Antimatter Reactor | x2 | -6/Factory | Preloaded Biomechanical Wings | x1 | -6/Factory Alien Tech Used ----------------- None Achievements -------------- None Challenges ------------ None Game ------ Seed PhysicsWeightCanceller Manual? 0 Play Time 02:15:02 Cumulative 339.2 hours Start 2022.04.16 @ 16:15:46 End 2022.04.16 @ 21:38:07 Sessions 3 Manual Loads 0 Difficulty Rogue Special Mode None Game No. 492 Rogue 492 Adventurer 0 Explorer 0 Win Type - Total 6 Types 4/0/1/1/0/0/0/0/0 Lore% 81 Gallery% 84 Achievement% 66 Wizard Run 0 Options --------- ASCII 0 Keyboard 1 Movement Numpad Keybinds 0 Fullscreen 2 Font 24/Smallcaps Map View 76x50 Tactical HUD 1 Map Filters NONE Filters NONE Steam 1 RUN: e33febaa-015c-4b75-b394-7b28b9a70fdb